bitfinex/quotes_BTCUSD_20241002
["timestamp","ask_amount","ask_price","bid_price","bid_amount"]
[1727828606587,0.00779142,60899.0,60892.0,0.001636]
[1727828606588,0.00172915,60899.0,60892.0,0.001636]
[1727828607070,0.131371,60897.0,60892.0,0.001636]
[1727828607284,0.262739,60897.0,60892.0,0.001636]
[1727828607494,0.131372,60896.0,60892.0,0.001636]
[1727828607702,0.13885895,60896.0,60892.0,0.001636]
[1727828607914,0.13885895,60896.0,60892.0,0.133015]
[1727828608566,0.13885895,60896.0,60893.0,0.131376]
[1727828608567,0.00748695,60896.0,60893.0,0.131376]
[1727828608797,0.08312915,60899.0,60894.0,0.131375]
[1727828609024,0.00747161,60895.0,60892.0,0.007636]
[1727828609242,0.08312915,60899.0,60894.0,0.131375]
[1727828609455,0.001,60896.0,60892.0,0.140014]
[1727828609955,0.001,60896.0,60893.0,0.131377]
[1727828610232,0.001,60896.0,60892.0,0.008636]
[1727828610473,0.131377,60893.0,60892.0,0.008636]
[1727828610727,0.131377,60893.0,60892.0,0.001636]
[1727828610973,0.131374,60895.0,60892.0,0.001636]
[1727828611183,0.131374,60895.0,60892.0,0.008636]
[1727828611402,0.13310115,60896.0,60892.0,0.008636]
[1727828611611,0.13883058,60894.0,60892.0,0.001636]
[1727828611821,0.001,60893.0,60892.0,0.010636]
[1727828612034,0.00845458,60893.0,60892.0,0.142016]
[1727828612289,0.00745458,60893.0,60892.0,0.133016]
[1727828612777,0.00172915,60895.0,60892.0,0.139014]
[1727828612988,0.00745458,60893.0,60892.0,0.139014]
[1727828613202,0.00172915,60895.0,60892.0,0.139014]
[1727828613411,0.00745458,60893.0,60892.0,0.007636]
[1727828613621,0.13310315,60895.0,60892.0,0.007636]
[1727828613846,0.00745458,60893.0,60892.0,0.133015]
[1727828614096,0.00172915,60895.0,60892.0,0.010636]
[1727828614305,0.0933,60897.0,60892.0,0.142016]
[1727828614306,0.00745458,60893.0,60892.0,0.142016]
[1727828614522,0.22467,60897.0,60892.0,0.264394]
[1727828614734,0.02574066,60898.0,60892.0,0.34283521]
[1727828614735,0.00743426,60893.0,60892.0,0.34283521]
[1727828614953,0.02574066,60898.0,60897.0,0.131369]
[1727828615595,0.04274522,60898.0,60897.0,0.131369]
[1727828616249,0.04274522,60898.0,60895.0,0.131371]
[1727828616485,0.04274522,60898.0,60893.0,0.023]
[1727828616486,0.01700456,60897.0,60893.0,0.023]
[1727828616756,0.01700456,60897.0,60895.0,0.154373]
[1727828617022,0.01700456,60897.0,60894.0,0.262751]
[1727828617023,0.131377,60893.0,60892.0,0.001636]
[1727828617241,0.14838156,60893.0,60892.0,0.001636]
[1727828618626,0.01700456,60893.0,60892.0,0.001636]
[1727828618840,0.14838156,60893.0,60892.0,0.001636]
[1727828619283,0.01700456,60893.0,60892.0,0.001636]
[1727828619498,0.01700456,60894.0,60892.0,0.001636]
[1727828619711,0.17572915,60893.0,60892.0,0.001636]
[1727828619964,0.47714564,60893.0,60892.0,0.001636]
[1727828620204,0.47714564,60893.0,60892.0,0.005636]
[1727828620446,0.45353687,60893.0,60892.0,0.005636]
[1727828620691,0.45366179,60893.0,60892.0,0.005636]
[1727828620935,0.43653231,60893.0,60892.0,0.001636]
[1727828621182,0.4596618,60893.0,60892.0,0.002636]
[1727828621824,0.4339155,60893.0,60892.0,0.002636]
[1727828622271,0.59074545,60893.0,60892.0,0.002636]
[1727828622503,0.58474545,60893.0,60892.0,0.001636]
[1727828622730,0.5279155,60893.0,60892.0,0.001636]
[1727828623190,0.5299155,60893.0,60892.0,0.001636]
[1727828623423,0.303603,60881.0,60880.0,0.24532854]
[1727828623641,0.42782742,60881.0,60880.0,0.24532854]
[1727828623885,0.41069793,60881.0,60880.0,0.24532854]
[1727828624134,0.131418,60874.0,60873.0,0.24532854]
[1727828624377,0.14847222,60874.0,60873.0,0.24532854]
[1727828624608,0.131421,60873.0,60872.0,0.00077691]
[1727828624842,0.14847522,60873.0,60872.0,0.00077691]
[1727828625132,0.1742283,60873.0,60872.0,0.00077691]
[1727828625820,0.17595745,60873.0,60872.0,0.00077691]
[1727828626949,0.1742283,60873.0,60872.0,0.00077691]
[1727828630452,0.15717408,60873.0,60872.0,0.00077691]
[1727828630667,0.17433737,60873.0,60872.0,0.00077691]
[1727828631328,0.17433737,60873.0,60872.0,0.00177691]
[1727828631768,0.17433737,60873.0,60872.0,0.00077691]
[1727828633368,0.17433737,60873.0,60872.0,0.00277691]
[1727828633581,0.17452816,60873.0,60872.0,0.00277691]
[1727828633843,0.04310716,60873.0,60872.0,0.18959612]
[1727828634077,0.01733183,60873.0,60872.0,0.02377691]
[1727828634538,0.01733183,60873.0,60872.0,0.02577691]
[1727828634755,0.01733183,60873.0,60872.0,0.15719991]
[1727828635065,0.01733183,60873.0,60872.0,0.15519991]
[1727828635286,0.01733183,60873.0,60872.0,0.16019991]
[1727828636347,0.01733183,60873.0,60872.0,0.15519991]
[1727828636763,0.01833183,60873.0,60872.0,0.16319991]
[1727828637180,0.04408263,60873.0,60872.0,0.16319991]
[1727828637835,0.04408263,60873.0,60872.0,0.03177691]
[1727828638072,0.17550363,60873.0,60872.0,0.00877691]
[1727828639363,0.17450363,60873.0,60872.0,0.00077691]
[1727828639575,0.17450363,60873.0,60872.0,0.00877691]
[1727828639800,0.17550363,60873.0,60872.0,0.00877691]
[1727828640024,0.17550363,60873.0,60872.0,0.01041291]
[1727828641363,0.17556093,60873.0,60872.0,0.01041291]
[1727828642240,0.04413993,60873.0,60872.0,0.01041291]
[1727828642684,0.17556093,60873.0,60872.0,0.01041291]
[1727828642897,0.04413993,60873.0,60872.0,0.01041291]
[1727828643118,0.17556093,60873.0,60872.0,0.01041291]
[1727828643629,0.04413993,60873.0,60872.0,0.01041291]
[1727828645398,0.17542843,60873.0,60872.0,0.01041291]
[1727828645831,0.1581718,60873.0,60872.0,0.01041291]
[1727828646047,0.17550111,60873.0,60872.0,0.01041291]
[1727828647860,0.14975031,60873.0,60872.0,0.01041291]
[1727828648607,0.132421,60873.0,60872.0,0.01041291]
[1727828648823,0.14985157,60873.0,60872.0,0.01041291]
[1727828650848,0.17733361,60873.0,60872.0,0.01041291]
[1727828651036,0.17560446,60873.0,60872.0,0.01041291]
[1727828651267,0.14985157,60873.0,60872.0,0.01041291]
[1727828651731,0.132421,60873.0,60872.0,0.01041291]
[1727828651967,0.14984236,60873.0,60872.0,0.01041291]
[1727828653610,0.01842136,60873.0,60872.0,0.01041291]
[1727828654282,0.01842136,60873.0,60872.0,0.51634957]
[1727828654503,0.04417198,60873.0,60872.0,0.51634957]
[1727828654725,0.04417198,60873.0,60872.0,0.03341291]
[1727828654941,0.02675062,60873.0,60872.0,0.01041291]
[1727828655194,0.04400832,60873.0,60872.0,0.01041291]
[1727828655642,0.0182577,60873.0,60872.0,0.01041291]
[1727828656568,0.0182577,60873.0,60872.0,0.14183591]
[1727828658319,0.0182577,60873.0,60872.0,0.35165512]
[1727828658320,0.001,60873.0,60872.0,0.35165512]
[1727828658595,0.04401595,60873.0,60872.0,0.51634957]
[1727828658805,0.04401578,60873.0,60872.0,0.60654957]
[1727828660148,0.001,60873.0,60872.0,0.78594957]
[1727828660432,0.001,60873.0,60872.0,0.79094957]
[1727828660646,0.000818,60892.0,60872.0,0.79094957]
[1727828660647,0.000818,60892.0,60891.0,0.131382]
[1727828660892,0.01805486,60892.0,60891.0,0.50589566]
[1727828661389,0.000818,60892.0,60891.0,0.59609566]
[1727828661611,0.01795398,60892.0,60891.0,0.67549566]
[1727828661855,0.01795398,60892.0,60891.0,0.77549566]
[1727828661856,0.000818,60892.0,60891.0,0.77549566]
[1727828662308,0.000818,60892.0,60891.0,0.78049566]
[1727828662771,0.000818,60892.0,60891.0,0.77549566]
[1727828663450,0.000818,60892.0,60891.0,0.78949566]
[1727828664620,0.000818,60892.0,60891.0,0.77549566]
[1727828665054,0.001818,60892.0,60891.0,0.78949566]
[1727828665488,0.000818,60892.0,60891.0,0.77549566]
[1727828665697,0.001818,60892.0,60891.0,0.78949566]
[1727828666175,0.001818,60892.0,60891.0,0.76649566]
[1727828666421,0.001818,60892.0,60891.0,0.17869445]
[1727828666683,0.00938123,60892.0,60891.0,0.17869445]
[1727828666931,0.01892143,60892.0,60891.0,0.014]
[1727828667155,0.02648466,60892.0,60891.0,0.014]
[1727828667391,0.01892143,60892.0,60891.0,0.014]
[1727828667625,0.026403,60892.0,60891.0,0.014]
[1727828668122,0.026403,60892.0,60891.0,0.145382]
[1727828668351,0.025403,60892.0,60887.0,0.023]
[1727828668596,0.025403,60892.0,60889.0,0.023]
[1727828668597,0.01710343,60891.0,60889.0,0.023]
[1727828668829,0.01710343,60891.0,60890.0,0.023]
[1727828669063,0.05027504,60891.0,60890.0,0.023]
[1727828669308,0.03317161,60891.0,60890.0,0.023]
[1727828669746,0.02574283,60891.0,60890.0,0.154384]
[1727828670018,0.02574283,60891.0,60890.0,0.32236276]
[1727828670239,0.02674283,60891.0,60890.0,0.32607845]
[1727828671414,0.02574283,60891.0,60890.0,0.41907845]
[1727828671642,0.02674283,60891.0,60890.0,0.43207845]
[1727828671870,0.001,60891.0,60890.0,0.43207845]
[1727828672301,0.000818,60892.0,60891.0,0.254382]
[1727828672531,0.000818,60892.0,60891.0,0.42236044]
[1727828672764,0.000818,60892.0,60891.0,0.41907645]
[1727828674437,0.000818,60892.0,60891.0,0.18769445]
[1727828674907,0.02755929,60892.0,60891.0,0.20069445]
[1727828675130,0.03501796,60892.0,60891.0,0.20069445]
[1727828675338,0.03401796,60892.0,60891.0,0.18769445]
[1727828675577,0.03501796,60892.0,60891.0,0.19969445]
[1727828675809,0.03501796,60892.0,60891.0,0.67640499]
[1727828676036,0.03401796,60892.0,60891.0,0.41907645]
[1727828676283,0.02655929,60892.0,60891.0,0.41907645]
[1727828676528,0.001818,60892.0,60891.0,0.60017645]
[1727828678313,0.001818,60892.0,60891.0,0.58717645]
[1727828678314,0.000818,60892.0,60891.0,0.58717645]
[1727828678525,0.001818,60892.0,60891.0,0.59817645]
[1727828679201,0.000818,60892.0,60891.0,0.58717645]
[1727828679427,0.000818,60892.0,60891.0,0.60117645]
[1727828679655,0.000818,60892.0,60891.0,0.60617645]
[1727828679656,0.001818,60892.0,60891.0,0.60617645]
[1727828679882,0.000818,60902.0,60901.0,0.42746]
[1727828680092,0.000818,60902.0,60901.0,0.77897366]
[1727828681817,0.000818,60902.0,60901.0,0.78397366]
[1727828682035,0.0832,60939.0,60925.0,0.023]
[1727828682247,0.131282,60938.0,60933.0,0.154291]
[1727828682476,0.0832,60939.0,60933.0,0.154291]
[1727828682477,0.14828835,60937.0,60933.0,0.154291]
[1727828682738,0.131283,60937.0,60933.0,0.154291]
[1727828682936,0.0832,60939.0,60933.0,0.154291]
[1727828682937,0.214479,60939.0,60933.0,0.154291]
[1727828683205,0.262541,60943.0,60933.0,0.154291]
[1727828683435,0.262553,60940.0,60933.0,0.31898545]
[1727828683650,0.262553,60940.0,60926.0,0.131306]
[1727828683651,0.131297,60931.0,60926.0,0.131306]
[1727828683863,0.1313,60929.0,60928.0,0.023]
[1727828684105,0.1313,60929.0,60918.0,0.131322]
[1727828684106,0.01704915,60929.0,60918.0,0.131322]
[1727828684321,0.131314,60923.0,60922.0,0.24532854]
[1727828684537,0.262621,60925.0,60919.0,0.16469445]
[1727828684749,0.02572963,60923.0,60920.0,0.131319]
[1727828684974,0.02572963,60923.0,60921.0,0.16469445]
[1727828685211,0.393949,60922.0,60917.0,0.131325]
[1727828685425,0.131317,60922.0,60918.0,0.131323]
[1727828685633,0.131317,60922.0,60919.0,0.002]
[1727828685856,0.131319,60920.0,60919.0,0.002]
[1727828686061,0.131318,60921.0,60919.0,0.002]
[1727828686283,0.02572963,60923.0,60919.0,0.131321]
[1727828686547,0.15704263,60923.0,60919.0,0.131321]
[1727828686799,0.15704263,60923.0,60917.0,0.43234645]
[1727828686800,0.131315,60922.0,60918.0,0.023]
[1727828687054,0.131315,60922.0,60918.0,0.154323]
[1727828687954,0.131315,60922.0,60919.0,0.006]
[1727828688396,0.131315,60922.0,60918.0,0.154323]
[1727828688627,0.01703583,60921.0,60918.0,0.160323]
[1727828688823,0.131315,60922.0,60919.0,0.131321]
[1727828689116,0.017035,60921.0,60919.0,0.131321]
[1727828689336,0.01701981,60920.0,60919.0,0.154321]
[1727828689569,0.01701981,60920.0,60919.0,0.160321]
[1727828690004,0.02572963,60923.0,60919.0,0.029]
[1727828690233,0.01701964,60920.0,60919.0,0.029]
[1727828690926,0.01701964,60920.0,60917.0,0.16469445]
[1727828690927,0.01701964,60920.0,60918.0,0.023]
[1727828690928,0.01701964,60920.0,60899.0,0.262725]
[1727828690929,0.262665,60914.0,60899.0,0.262725]
[1727828691192,0.262665,60914.0,60909.0,0.24532854]
[1727828691193,0.131341,60910.0,60909.0,0.24532854]
[1727828691432,0.262696,60907.0,60900.0,0.131362]
[1727828691677,0.131352,60905.0,60900.0,0.131362]
[1727828691905,0.01701964,60904.0,60901.0,0.13136]
[1727828692134,0.01701964,60903.0,60901.0,0.13136]
[1727828692574,0.01701964,60903.0,60902.0,0.028636]
[1727828692785,0.02488791,60903.0,60902.0,0.028636]
[1727828693502,0.00786827,60903.0,60902.0,0.159994]
[1727828693730,0.0169537,60903.0,60902.0,0.159994]
[1727828693951,0.36177204,60939.0,60902.0,0.159994]
[1727828693952,0.131346,60908.0,60903.0,0.131354]
[1727828694165,0.262678,60911.0,60904.0,0.131352]
[1727828694166,0.01695382,60907.0,60904.0,0.131352]
[1727828694411,0.01695382,60906.0,60904.0,0.131352]
[1727828694638,0.01695382,60905.0,60904.0,0.131352]
[1727828694869,0.01695382,60905.0,60903.0,0.262709]
[1727828694870,0.01695382,60905.0,60903.0,0.285712]
[1727828695094,0.262678,60911.0,60903.0,0.285712]
[1727828695095,0.131346,60908.0,60904.0,0.131354]
[1727828695314,0.01689682,60907.0,60904.0,0.131354]
[1727828695567,0.01689682,60906.0,60904.0,0.131354]
[1727828695814,0.131346,60908.0,60904.0,0.131354]
[1727828695815,0.01689682,60905.0,60904.0,0.131354]
[1727828696031,0.14824482,60907.0,60904.0,0.131354]
[1727828696266,0.01689682,60906.0,60903.0,0.154355]
[1727828696479,0.131348,60907.0,60903.0,0.154355]
[1727828696711,0.01690247,60906.0,60903.0,0.154355]
[1727828696929,0.01690247,60905.0,60903.0,0.154355]
[1727828697156,0.01690247,60904.0,60903.0,0.161355]
[1727828697409,0.02573707,60905.0,60904.0,0.131354]
[1727828698745,0.02573707,60905.0,60904.0,0.34817321]
[1727828699186,0.02573707,60905.0,60904.0,0.51286766]
[1727828699435,0.02573707,60905.0,60904.0,0.59006766]
[1727828699867,0.02573707,60905.0,60904.0,0.69006766]
[1727828701715,0.02573707,60905.0,60904.0,0.42604845]
[1727828701935,0.262651,60918.0,60913.0,0.023]
[1727828702150,0.24532854,60914.0,60913.0,0.023]
[1727828702373,0.27035563,60917.0,60911.0,0.154339]
[1727828702597,0.00769705,60914.0,60911.0,0.31903345]
[1727828702827,0.13133,60915.0,60911.0,0.31903345]
[1727828703054,0.00769705,60913.0,60911.0,0.31903345]
[1727828703531,0.262644,60919.0,60913.0,0.131334]
[1727828703783,0.24532854,60918.0,60914.0,0.131331]
[1727828704034,0.131326,60917.0,60914.0,0.131332]
[1727828704475,0.00769705,60917.0,60914.0,0.131332]
[1727828704703,0.13902405,60917.0,60913.0,0.131333]
[1727828704960,0.13902405,60917.0,60915.0,0.023]
[1727828704961,0.00769705,60917.0,60915.0,0.023]
[1727828705180,0.03343068,60917.0,60916.0,0.50584166]
[1727828705419,0.02573363,60917.0,60916.0,0.50584166]
[1727828706318,0.311969,60926.0,60922.0,0.131315]
[1727828706319,0.049353,60926.0,60922.0,0.131315]
[1727828706562,0.049353,60926.0,60922.0,0.50582866]
[1727828706788,0.000818,60934.0,60922.0,0.50582866]
[1727828707245,0.000818,60934.0,60922.0,0.60582866]
[1727828707467,0.000818,60934.0,60922.0,0.68802866]
[1727828707748,0.000818,60934.0,60933.0,0.259291]
[1727828708075,0.000818,60934.0,60933.0,0.7910855]
[1727828708078,0.000818,60934.0,60933.0,0.78780466]
[1727828708344,0.001638,60944.0,60933.0,0.78780466]
[1727828708345,0.001638,60944.0,60943.0,0.25927]
[1727828708528,0.001638,60944.0,60943.0,0.66362679]
[1727828708695,0.001638,60944.0,60943.0,0.69325674]
[1727828708911,0.001638,60944.0,60943.0,0.64369366]
[1727828709349,0.001638,60944.0,60943.0,0.61078366]
[1727828709613,0.001638,60944.0,60943.0,0.70356096]
[1727828710272,0.001638,60944.0,60943.0,0.43296445]
[1727828710489,0.001638,60944.0,60943.0,0.40996445]
[1727828710709,0.001638,60944.0,60943.0,0.39596445]
[1727828711130,0.001638,60944.0,60943.0,0.40996445]
[1727828711556,0.001638,60944.0,60943.0,0.39596445]
[1727828711780,0.001638,60944.0,60943.0,0.42596445]
[1727828713105,0.001638,60944.0,60943.0,0.41896445]
[1727828713520,0.001638,60944.0,60943.0,0.42996445]
[1727828713934,0.001638,60944.0,60943.0,0.41896445]
[1727828714158,0.001638,60944.0,60943.0,0.42996445]
[1727828714856,0.001638,60944.0,60943.0,0.41896445]
[1727828715095,0.001638,60944.0,60943.0,0.42996445]
[1727828716398,0.001638,60944.0,60943.0,0.41896445]
[1727828716606,0.001638,60944.0,60943.0,0.71056096]
[1727828716816,0.001638,60944.0,60943.0,0.9558895]
[1727828717052,0.001638,60944.0,60943.0,0.73647096]
[1727828717489,0.001638,60944.0,60943.0,0.74947096]
[1727828717713,0.001638,60944.0,60943.0,0.79403404]
[1727828717919,0.001638,60944.0,60943.0,0.73647096]
[1727828718358,0.001638,60944.0,60943.0,0.79503404]
[1727828718579,0.001638,60944.0,60943.0,0.75047096]
[1727828718806,0.001638,60944.0,60943.0,0.71756096]
[1727828719472,0.001638,60944.0,60943.0,0.70356096]
[1727828719698,0.001638,60944.0,60943.0,0.71756096]
[1727828719947,0.001638,60944.0,60943.0,0.43296445]
[1727828720177,0.001638,60944.0,60943.0,0.41896445]
[1727828720613,0.001638,60944.0,60943.0,0.43296445]
[1727828721061,0.001638,60944.0,60943.0,0.41896445]
[1727828721286,0.001638,60944.0,60943.0,0.43296445]
[1727828725493,0.001638,60944.0,60943.0,0.67829299]
[1727828725712,0.001638,60944.0,60943.0,0.81975619]
[1727828725936,0.001638,60944.0,60943.0,0.65342765]
[1727828726388,0.001638,60945.0,60943.0,0.65342765]
[1727828726389,1e-06,60945.0,60944.0,0.266268]
[1727828726603,1e-06,60947.0,60946.0,0.012]
[1727828726835,0.001638,60952.0,60951.0,0.005]
[1727828727059,0.304884,60983.0,60973.0,0.023]
[1727828727270,0.3543194,60983.0,60978.0,0.131193]
[1727828727513,0.00857379,60982.0,60978.0,0.131193]
[1727828727799,0.00857379,60982.0,60977.0,0.262393]
[1727828727800,0.131189,60981.0,60977.0,0.131196]
[1727828728007,0.00857379,60982.0,60978.0,0.023]
[1727828728215,0.1737,60983.0,60979.0,0.131192]
[1727828728216,0.00891289,60980.0,60979.0,0.131192]
[1727828728442,0.304885,60983.0,60979.0,0.131192]
[1727828728672,0.304885,60983.0,60979.0,0.023]
[1727828728673,0.00891289,60980.0,60979.0,0.023]
[1727828728900,0.13119,60980.0,60979.0,0.023]
[1727828729130,0.262386,60979.0,60973.0,0.023]
[1727828729368,0.131198,60977.0,60975.0,0.023]
[1727828729606,0.131199,60976.0,60973.0,0.16469445]
[1727828729827,0.131208,60972.0,60968.0,0.154215]
[1727828730051,0.131208,60972.0,60970.0,0.023]
[1727828730268,0.262424,60970.0,60963.0,0.1]
[1727828730476,0.262424,60970.0,60964.0,0.41002299]
[1727828730685,0.131221,60966.0,60963.0,0.1]
[1727828731157,0.00888805,60965.0,60963.0,0.1]
[1727828731659,0.00888805,60965.0,60962.0,0.262458]
[1727828731660,0.00888805,60965.0,60964.0,0.231224]
[1727828731881,0.131217,60968.0,60964.0,0.231224]
[1727828732094,0.131219,60967.0,60964.0,0.1]
[1727828732301,0.00888805,60965.0,60964.0,0.1]
[1727828732512,0.14011005,60966.0,60964.0,0.1]
[1727828732723,0.14011005,60966.0,60963.0,0.13]
[1727828732934,0.131213,60970.0,60966.0,0.13122]
[1727828733178,0.131223,60965.0,60963.0,0.123]
[1727828733410,0.131221,60966.0,60963.0,0.123]
[1727828733623,0.131221,60966.0,60964.0,0.007]
[1727828734499,0.00888805,60965.0,60964.0,0.007]
[1727828734725,0.14011005,60965.0,60964.0,0.007]
[1727828734944,0.00888805,60965.0,60960.0,0.023]
[1727828735161,0.14011205,60965.0,60963.0,0.007]
[1727828735378,0.00888805,60965.0,60963.0,0.007]
[1727828735620,0.00888805,60965.0,60964.0,0.131224]
[1727828735846,0.00888805,60965.0,60964.0,0.31891845]
[1727828736084,0.131201,60975.0,60972.0,0.131207]
[1727828736317,0.262398,60977.0,60965.0,0.18769445]
[1727828736579,0.4723,60995.0,60973.0,0.154205]
[1727828736580,0.00881153,60974.0,60973.0,0.154205]
[1727828736824,0.4743,60995.0,60974.0,0.023]
[1727828736825,0.0491874,60978.0,60974.0,0.023]
[1727828737045,0.0795,60983.0,60976.0,0.023]
[1727828737046,0.131193,60979.0,60976.0,0.023]
[1727828737284,0.00872527,60977.0,60976.0,0.023]
[1727828737493,0.262376,60982.0,60976.0,0.023]
[1727828737494,0.263182,60984.0,60976.0,0.154197]
[1727828737711,0.00872527,60977.0,60976.0,0.154197]
[1727828737930,0.00872527,60977.0,60975.0,0.023]
[1727828738211,0.131199,60976.0,60973.0,0.131204]
[1727828738427,0.00878848,60977.0,60973.0,0.31889845]
[1727828738696,0.00886748,60975.0,60973.0,0.31889845]
[1727828738930,0.262401,60976.0,60969.0,0.023]
[1727828739164,0.131199,60976.0,60975.0,0.006]
[1727828739602,0.131199,60976.0,60971.0,0.023]
[1727828739603,0.131204,60974.0,60971.0,0.023]
[1727828739815,0.26413215,60975.0,60973.0,0.006]
[1727828740062,0.131203,60974.0,60973.0,0.006]
[1727828740279,0.0257083,60976.0,60975.0,0.023]
[1727828740509,0.0257083,60976.0,60975.0,0.154201]
[1727828741895,0.262375,60982.0,60977.0,0.131196]
[1727828742113,0.210684,60983.0,60980.0,0.13119]
[1727828742335,0.131189,60981.0,60978.0,0.023]
[1727828742545,0.262368,60983.0,60976.0,0.023]
[1727828742753,0.000818,60984.0,60979.0,0.131192]
[1727828742956,0.131184,60983.0,60979.0,0.131192]
[1727828743431,0.131184,60983.0,60977.0,0.263391]
[1727828743432,0.000818,60984.0,60978.0,0.023]
[1727828743645,0.26237,60983.0,60978.0,0.023]
[1727828743842,0.131188,60981.0,60978.0,0.131194]
[1727828744070,0.131188,60981.0,60979.0,0.023]
[1727828744282,0.131188,60981.0,60977.0,0.024]
[1727828744514,0.000818,60984.0,60977.0,0.024]
[1727828744782,0.131185,60983.0,60979.0,0.131192]
[1727828744997,0.02570607,60981.0,60979.0,0.131192]
[1727828745419,0.02570607,60981.0,60977.0,0.285389]
[1727828745420,0.02570607,60981.0,60980.0,0.15419]
[1727828746060,0.131184,60983.0,60981.0,0.023]
[1727828746479,0.00888417,60982.0,60979.0,0.131191]
[1727828746696,0.00888417,60982.0,60980.0,0.154189]
[1727828746913,0.00888417,60982.0,60980.0,0.023]
[1727828747130,0.131188,60981.0,60980.0,0.023]
[1727828747381,0.14009791,60981.0,60980.0,0.023]
[1727828748011,0.14009791,60981.0,60980.0,0.025]
[1727828748410,0.00890991,60981.0,60980.0,0.15619]
[1727828748629,0.14009791,60981.0,60980.0,0.025]
[1727828748849,0.131188,60981.0,60980.0,0.025]
[1727828749053,0.16585312,60981.0,60980.0,0.025]
[1727828750285,0.16667112,60981.0,60980.0,0.025]
[1727828751888,0.14096568,60981.0,60980.0,0.025]
[1727828752134,0.00977768,60981.0,60980.0,0.15619]
[1727828752367,0.00977768,60981.0,60980.0,0.025]
[1727828753276,0.14096568,60981.0,60980.0,0.025]
[1727828755276,0.16667139,60981.0,60980.0,0.025]
[1727828755495,0.03548339,60981.0,60980.0,0.025]
[1727828757490,0.0435687,60981.0,60980.0,0.025]
[1727828757701,0.05258551,60981.0,60980.0,0.025]
[1727828758878,0.05258551,60981.0,60980.0,0.15619]
[1727828759150,0.05258551,60981.0,60980.0,0.32088445]
[1727828759361,0.05258551,60981.0,60980.0,0.49868445]
[1727828759362,0.0268798,60981.0,60980.0,0.49868445]
[1727828759599,0.000818,60981.0,60980.0,0.50068445]
[1727828760053,0.000818,60981.0,60980.0,0.49868445]
[1727828760273,0.000818,60981.0,60980.0,0.54324581]
[1727828760551,0.000818,60981.0,60980.0,0.49868445]
[1727828760793,0.000818,60981.0,60980.0,0.49668445]
[1727828761047,0.000818,60984.0,60983.0,0.005]
[1727828761245,0.0497271,61003.0,61002.0,0.53373951]
[1727828761487,0.0497271,61003.0,61002.0,0.69843396]
[1727828761716,0.000818,61005.0,61004.0,0.254138]
[1727828761918,0.000818,61005.0,61004.0,0.41883245]
[1727828764093,0.02650953,61005.0,61004.0,0.41883245]
[1727828764749,0.02650953,61005.0,61004.0,0.43283245]
[1727828765620,0.02650953,61005.0,61004.0,0.41883245]
[1727828766068,0.02650953,61005.0,61004.0,0.16469445]
[1727828766274,0.02650953,61005.0,61004.0,0.29583245]
[1727828766480,0.03625277,61005.0,61004.0,0.29583245]
[1727828766789,0.02650953,61005.0,61004.0,0.29583245]
[1727828766880,0.03625277,61005.0,61004.0,0.30983245]
[1727828767544,0.03625277,61005.0,61004.0,0.31883245]
[1727828767755,0.03625277,61005.0,61004.0,0.32683245]
[1727828767966,0.02650953,61005.0,61004.0,0.32683245]
[1727828768407,0.02650953,61005.0,61004.0,0.18769445]
[1727828768627,0.0451451,61005.0,60992.0,0.24532854]
[1727828768871,0.01690642,61004.0,60993.0,0.16469445]
[1727828769085,0.01229039,61005.0,60993.0,0.16469445]
[1727828769086,0.262296,61000.0,60993.0,0.16469445]
[1727828769301,0.01056124,61005.0,60997.0,0.262304]
[1727828769302,0.131144,61002.0,60997.0,0.262304]
[1727828769547,0.00974324,60999.0,60993.0,0.16469445]
[1727828769771,0.131152,60998.0,60994.0,0.13116]
[1727828769973,0.000818,61005.0,60995.0,0.16469445]
[1727828770209,0.00974324,60997.0,60995.0,0.16469445]
[1727828770449,0.131153,60998.0,60996.0,0.023]
[1727828770703,0.12163588,61021.0,60996.0,0.023]
[1727828770704,0.13115,60999.0,60997.0,0.023]
[1727828770944,0.00254715,61005.0,60997.0,0.023]
[1727828771186,0.02569763,60998.0,60996.0,0.023]
[1727828771658,0.0169079,60997.0,60996.0,0.023]
[1727828771922,0.02569763,60998.0,60996.0,0.163155]
[1727828772415,0.13288215,60997.0,60996.0,0.009]
[1727828772655,0.14979389,60997.0,60996.0,0.009]
[1727828772895,0.02569763,60998.0,60996.0,0.009]
[1727828773134,0.02569763,60998.0,60997.0,0.131153]
[1727828773383,0.262266,61007.0,60996.0,0.43700545]
[1727828773613,0.01688611,61004.0,60999.0,0.262296]
[1727828773844,0.01688611,61003.0,61001.0,0.131145]
[1727828774082,0.01688611,61002.0,61000.0,0.131147]
[1727828774328,0.01688611,61001.0,60999.0,0.131149]
[1727828774596,0.01688611,61000.0,60998.0,0.131151]
[1727828774846,0.000818,61005.0,60997.0,0.023]
[1727828775077,0.131142,61003.0,60999.0,0.134147]
[1727828775309,0.01684709,61002.0,60999.0,0.003]
[1727828775540,0.01684709,61001.0,60999.0,0.003]
[1727828776211,0.01684709,61001.0,60998.0,0.131151]
[1727828776439,0.262277,61004.0,61000.0,0.131147]
[1727828776440,0.131139,61004.0,61000.0,0.131147]
[1727828776653,0.01685109,61000.0,60998.0,0.13815]
[1727828776865,0.131144,61002.0,60998.0,0.13115]
[1727828777157,0.262295,61000.0,60992.0,0.1]
[1727828777337,0.28879219,61005.0,60995.0,0.023]
[1727828777338,0.131151,60998.0,60995.0,0.023]
[1727828777547,0.01685291,60997.0,60995.0,0.023]
[1727828777988,0.00963575,60996.0,60988.0,0.023]
[1727828778207,0.00963575,60996.0,60992.0,0.023]
[1727828778208,0.01685291,60995.0,60992.0,0.023]
[1727828778429,0.14801091,60995.0,60992.0,0.154164]
[1727828778651,0.01685291,60994.0,60993.0,0.154162]
[1727828778881,0.00963575,60994.0,60993.0,0.023]
[1727828779114,0.02648866,60994.0,60993.0,0.023]
[1727828779338,0.02654964,60994.0,60990.0,0.023]
[1727828779571,0.131164,60992.0,60990.0,0.18769445]
[1727828779842,0.01691389,60991.0,60990.0,0.18769445]
[1727828780075,0.02654964,60991.0,60990.0,0.31886345]